[Event "Titled Tuesday Blitz November 15 Early 2022"]
[White "Narayanan, Srinath"]
[Black "Krallis, Christos"]
[WhiteFideId "5018420"]
[BlackFideId "4298896"]
[WhiteElo "2459"]
[BlackElo "2243"]
[Result "1-0"]
[Round "04"]
[TimeControl "180+1"]
[Date "2022.11.16"]
[WhiteClock "0:00:14"]
[BlackClock "0:00:08"]

1. d4 {[%clk 0:03:00]}  Nf6 {[%clk 0:02:58]} 2. Nf3 {[%clk 0:02:59]}  d5 {[%clk 0:02:56]} 3. Bf4 {[%clk 0:02:59]}  e6 {[%clk 0:02:55]} 4. e3 {[%clk 0:02:57]}  Bd6 {[%clk 0:02:55]} 5. Bg3 {[%clk 0:02:56]}  c5 {[%clk 0:02:52]} 6. Nbd2 {[%clk 0:02:55]}  O-O {[%clk 0:02:44]} 7. c3 {[%clk 0:02:55]}  Qc7 {[%clk 0:02:43]} 8. Bd3 {[%clk 0:02:54]}  Nbd7 {[%clk 0:02:39]} 9. O-O {[%clk 0:02:53]}  e5 {[%clk 0:02:38]} 10. dxe5 {[%clk 0:02:51]}  Nxe5 {[%clk 0:02:38]} 11. Nxe5 {[%clk 0:02:44]}  Bxe5 {[%clk 0:02:39]} 12. Nf3 {[%clk 0:02:43]}  Bxg3 {[%clk 0:02:38]} 13. hxg3 {[%clk 0:02:44]}  Bg4 {[%clk 0:02:38]} 14. Be2 {[%clk 0:02:44]}  Bxf3 {[%clk 0:02:36]} 15. Bxf3 {[%clk 0:02:43]}  Rad8 {[%clk 0:02:35]} 16. Qa4 {[%clk 0:02:44]}  b6 {[%clk 0:02:34]} 17. Rad1 {[%clk 0:02:44]}  Rfe8 {[%clk 0:02:34]} 18. Bxd5 {[%clk 0:02:36]}  h5 {[%clk 0:02:09]} 19. Bf3 {[%clk 0:02:20]}  g6 {[%clk 0:02:07]} 20. Qf4 {[%clk 0:02:11]}  Qe7 {[%clk 0:02:02]} 21. a4 {[%clk 0:02:03]}  Kg7 {[%clk 0:02:00]} 22. Bc6 {[%clk 0:01:58]}  Rxd1 {[%clk 0:01:58]} 23. Rxd1 {[%clk 0:01:58]}  Rd8 {[%clk 0:01:57]} 24. Qf3 {[%clk 0:01:50]}  Rd6 {[%clk 0:01:53]} 25. Bb5 {[%clk 0:01:44]}  Qd8 {[%clk 0:01:49]} 26. Rxd6 {[%clk 0:01:44]}  Qxd6 {[%clk 0:01:50]} 27. Qe2 {[%clk 0:01:45]}  g5 {[%clk 0:01:39]} 28. Qd3 {[%clk 0:01:42]}  Qxd3 {[%clk 0:01:37]} 29. Bxd3 {[%clk 0:01:41]}  g4 {[%clk 0:01:35]} 30. Kf1 {[%clk 0:01:40]}  Nd7 {[%clk 0:01:35]} 31. f4 {[%clk 0:01:31]}  gxf3 {[%clk 0:01:22]} 32. gxf3 {[%clk 0:01:32]}  Ne5 {[%clk 0:01:20]} 33. Be2 {[%clk 0:01:25]}  Kg6 {[%clk 0:01:11]} 34. f4 {[%clk 0:01:14]}  Nd7 {[%clk 0:00:52]} 35. Bd3+ {[%clk 0:01:10]}  f5 {[%clk 0:00:46]} 36. Kf2 {[%clk 0:01:01]}  Nf6 {[%clk 0:00:45]} 37. Kf3 {[%clk 0:01:02]}  a5 {[%clk 0:00:39]} 38. e4 {[%clk 0:00:53]}  fxe4+ {[%clk 0:00:39]} 39. Bxe4+ {[%clk 0:00:54]}  Kg7 {[%clk 0:00:40]} 40. Ke3 {[%clk 0:00:53]}  Ng4+ {[%clk 0:00:38]} 41. Ke2 {[%clk 0:00:54]}  Nf6 {[%clk 0:00:36]} 42. Bf3 {[%clk 0:00:54]}  Kf7 {[%clk 0:00:34]} 43. Kd3 {[%clk 0:00:53]}  Ke6 {[%clk 0:00:34]} 44. Kc4 {[%clk 0:00:54]}  Kd6 {[%clk 0:00:33]} 45. Kb5 {[%clk 0:00:54]}  Kc7 {[%clk 0:00:34]} 46. Ka6 {[%clk 0:00:51]}  c4 {[%clk 0:00:20]} 47. Kb5 {[%clk 0:00:48]}  Ne8 {[%clk 0:00:20]} 48. Kxc4 {[%clk 0:00:47]}  Nd6+ {[%clk 0:00:20]} 49. Kd5 {[%clk 0:00:40]}  Nf5 {[%clk 0:00:21]} 50. Bxh5 {[%clk 0:00:39]}  Nxg3 {[%clk 0:00:22]} 51. Bg6 {[%clk 0:00:39]}  Ne2 {[%clk 0:00:22]} 52. f5 {[%clk 0:00:37]}  Nf4+ {[%clk 0:00:20]} 53. Ke4 {[%clk 0:00:35]}  Ne2 {[%clk 0:00:14]} 54. Ke5 {[%clk 0:00:31]}  Nc1 {[%clk 0:00:13]} 55. f6 {[%clk 0:00:30]}  Kd7 {[%clk 0:00:10]} 56. Kd5 {[%clk 0:00:27]}  Ne2 {[%clk 0:00:09]} 57. Bf5+ {[%clk 0:00:21]}  Ke8 {[%clk 0:00:09]} 58. Kc6 {[%clk 0:00:21]}  Ng3 {[%clk 0:00:09]} 59. Bg6+ {[%clk 0:00:20]}  Kf8 {[%clk 0:00:08]} 60. Kxb6 {[%clk 0:00:19]}  Ne2 {[%clk 0:00:07]} 61. Kxa5 {[%clk 0:00:18]}  Nf4 {[%clk 0:00:08]} 62. Be4 {[%clk 0:00:14]}  Kf7 {[%clk 0:00:09]} 63. Kb6 {[%clk 0:00:14]}  Kxf6 {[%clk 0:00:08]} 64. a5 {[%clk 0:00:14]} 1-0


[Site "https://www.chess.com"]

[Event "Titled Tuesday Blitz November 15 Early 2022"]
[White "Nguyen, Thai Dai Van"]
[Black "Vlassov, Nikolai"]
[WhiteFideId "358878"]
[BlackFideId "4103360"]
[WhiteElo "2534"]
[BlackElo "2324"]
[Result "1-0"]
[Round "04"]
[TimeControl "180+1"]
[Date "2022.11.16"]
[WhiteClock "0:00:24"]
[BlackClock "0:00:07"]

1. e4 {[%clk 0:03:00]}  Nc6 {[%clk 0:02:59]} 2. Nf3 {[%clk 0:03:00]}  d5 {[%clk 0:02:59]} 3. exd5 {[%clk 0:02:58]}  Qxd5 {[%clk 0:02:58]} 4. Nc3 {[%clk 0:02:58]}  Qa5 {[%clk 0:02:58]} 5. d4 {[%clk 0:02:23]}  Bg4 {[%clk 0:02:57]} 6. h3 {[%clk 0:02:23]}  Bxf3 {[%clk 0:02:57]} 7. Qxf3 {[%clk 0:02:24]}  O-O-O {[%clk 0:02:57]} 8. Bd3 {[%clk 0:02:07]}  e5 {[%clk 0:02:22]} 9. O-O {[%clk 0:02:06]}  Nf6 {[%clk 0:02:11]} 10. dxe5 {[%clk 0:02:00]}  Nxe5 {[%clk 0:02:06]} 11. Qf5+ {[%clk 0:02:01]}  Kb8 {[%clk 0:02:06]} 12. b4 {[%clk 0:01:48]}  Bxb4 {[%clk 0:02:05]} 13. Nb5 {[%clk 0:01:42]}  Nxd3 {[%clk 0:02:01]} 14. cxd3 {[%clk 0:01:43]}  a6 {[%clk 0:01:59]} 15. Rb1 {[%clk 0:01:17]}  axb5 {[%clk 0:01:52]} 16. a3 {[%clk 0:01:17]}  Rd5 {[%clk 0:01:04]} 17. axb4 {[%clk 0:01:15]}  Qa2 {[%clk 0:01:03]} 18. Rb2 {[%clk 0:01:03]}  Qxb2 {[%clk 0:01:02]} 19. Qxd5 {[%clk 0:01:04]}  Qxc1 {[%clk 0:01:02]} 20. Qxf7 {[%clk 0:01:05]}  Qg5 {[%clk 0:00:57]} 21. Ra1 {[%clk 0:01:04]}  Qg6 {[%clk 0:00:40]} 22. Qa2 {[%clk 0:01:04]}  c6 {[%clk 0:00:34]} 23. Qa8+ {[%clk 0:01:03]}  Kc7 {[%clk 0:00:34]} 24. Qxh8 {[%clk 0:01:04]}  Nd5 {[%clk 0:00:33]} 25. Ra8 {[%clk 0:00:59]}  Qg5 {[%clk 0:00:29]} 26. Qb8+ {[%clk 0:00:54]}  Kb6 {[%clk 0:00:27]} 27. Qa7+ {[%clk 0:00:54]}  Kc7 {[%clk 0:00:28]} 28. Qb8+ {[%clk 0:00:55]}  Kb6 {[%clk 0:00:28]} 29. Qd6 {[%clk 0:00:53]}  Nf4 {[%clk 0:00:18]} 30. g3 {[%clk 0:00:41]}  Nd5 {[%clk 0:00:06]} 31. Kg2 {[%clk 0:00:29]}  Qf5 {[%clk 0:00:05]} 32. Qc5+ {[%clk 0:00:24]}  Kc7 {[%clk 0:00:05]} 33. Qd4 {[%clk 0:00:25]}  Qf7 {[%clk 0:00:04]} 34. Ra1 {[%clk 0:00:23]}  Nf6 {[%clk 0:00:04]} 35. Re1 {[%clk 0:00:23]}  Qd5+ {[%clk 0:00:04]} 36. Qxd5 {[%clk 0:00:23]}  Nxd5 {[%clk 0:00:05]} 37. Re4 {[%clk 0:00:23]}  Kd6 {[%clk 0:00:05]} 38. Kf3 {[%clk 0:00:23]}  c5 {[%clk 0:00:06]} 39. bxc5+ {[%clk 0:00:23]}  Kxc5 {[%clk 0:00:06]} 40. Rg4 {[%clk 0:00:22]}  g6 {[%clk 0:00:05]} 41. Ke2 {[%clk 0:00:22]}  b4 {[%clk 0:00:06]} 42. Kd2 {[%clk 0:00:22]}  b5 {[%clk 0:00:05]} 43. Kc2 {[%clk 0:00:22]}  Nf6 {[%clk 0:00:04]} 44. Rf4 {[%clk 0:00:22]}  Nd5 {[%clk 0:00:05]} 45. Rf7 {[%clk 0:00:21]}  h5 {[%clk 0:00:05]} 46. Kb3 {[%clk 0:00:20]}  Kd4 {[%clk 0:00:05]} 47. Rd7 {[%clk 0:00:21]}  Ke5 {[%clk 0:00:06]} 48. f4+ {[%clk 0:00:20]}  Ke6 {[%clk 0:00:05]} 49. Rb7 {[%clk 0:00:19]}  Ne3 {[%clk 0:00:06]} 50. Rxb5 {[%clk 0:00:18]}  Nf1 {[%clk 0:00:06]} 51. Rg5 {[%clk 0:00:19]}  Kf6 {[%clk 0:00:05]} 52. Kxb4 {[%clk 0:00:20]}  Nd2 {[%clk 0:00:04]} 53. Kc5 {[%clk 0:00:19]}  Nf3 {[%clk 0:00:05]} 54. h4 {[%clk 0:00:20]}  Nxg5 {[%clk 0:00:04]} 55. fxg5+ {[%clk 0:00:20]}  Kf5 {[%clk 0:00:05]} 56. d4 {[%clk 0:00:21]}  Kg4 {[%clk 0:00:05]} 57. d5 {[%clk 0:00:22]}  Kxg3 {[%clk 0:00:06]} 58. d6 {[%clk 0:00:23]}  Kxh4 {[%clk 0:00:06]} 59. d7 {[%clk 0:00:23]}  Kxg5 {[%clk 0:00:07]} 60. d8=Q+ {[%clk 0:00:24]} 1-0


[Site "https://www.chess.com"]

[Event "Titled Tuesday Blitz November 15 Early 2022"]
[White "Novikova, Galina"]
[Black "Bethke, Richard"]
[WhiteFideId "4157095"]
[BlackFideId "12959243"]
[WhiteElo "1973"]
[BlackElo "2369"]
[Result "0-1"]
[Round "04"]
[TimeControl "180+1"]
[Date "2022.11.16"]
[WhiteClock "0:00:02"]
[BlackClock "0:00:34"]

1. e4 {[%clk 0:03:00]}  c6 {[%clk 0:02:57]} 2. d4 {[%clk 0:03:00]}  d5 {[%clk 0:02:58]} 3. exd5 {[%clk 0:03:00]}  cxd5 {[%clk 0:02:58]} 4. c4 {[%clk 0:03:01]}  dxc4 {[%clk 0:02:57]} 5. Nc3 {[%clk 0:03:02]}  Nf6 {[%clk 0:02:55]} 6. Bxc4 {[%clk 0:03:02]}  Bf5 {[%clk 0:02:54]} 7. Qb3 {[%clk 0:02:52]}  e6 {[%clk 0:02:51]} 8. Qxb7 {[%clk 0:02:49]}  Nbd7 {[%clk 0:02:51]} 9. Nf3 {[%clk 0:02:08]}  Be7 {[%clk 0:02:44]} 10. Ne5 {[%clk 0:01:59]}  O-O {[%clk 0:02:40]} 11. Nc6 {[%clk 0:01:51]}  Qe8 {[%clk 0:02:38]} 12. Nxe7+ {[%clk 0:01:49]}  Qxe7 {[%clk 0:02:39]} 13. O-O {[%clk 0:01:48]}  Rfc8 {[%clk 0:02:35]} 14. Bb3 {[%clk 0:01:45]}  Rab8 {[%clk 0:02:30]} 15. Qf3 {[%clk 0:01:44]}  Bg4 {[%clk 0:02:25]} 16. Qg3 {[%clk 0:01:44]}  h5 {[%clk 0:02:22]} 17. h3 {[%clk 0:01:43]}  Bf5 {[%clk 0:02:20]} 18. Bf4 {[%clk 0:01:42]}  Rb6 {[%clk 0:02:19]} 19. Rfe1 {[%clk 0:01:37]}  Qb4 {[%clk 0:02:06]} 20. Rad1 {[%clk 0:01:17]}  a5 {[%clk 0:01:45]} 21. d5 {[%clk 0:00:56]}  exd5 {[%clk 0:01:40]} 22. Nxd5 {[%clk 0:00:57]}  Nxd5 {[%clk 0:01:40]} 23. Bxd5 {[%clk 0:00:58]}  Nf6 {[%clk 0:01:35]} 24. Bf3 {[%clk 0:00:22]}  g6 {[%clk 0:01:26]} 25. b3 {[%clk 0:00:20]}  Kh7 {[%clk 0:01:19]} 26. Be5 {[%clk 0:00:21]}  Rc2 {[%clk 0:01:12]} 27. Qg5 {[%clk 0:00:20]}  Qc5 {[%clk 0:00:53]} 28. Bxf6 {[%clk 0:00:13]}  Qxf2+ {[%clk 0:00:52]} 29. Kh1 {[%clk 0:00:14]}  Bxh3 {[%clk 0:00:53]} 30. Kh2 {[%clk 0:00:05]}  Qxf3 {[%clk 0:00:44]} 31. Rf1 {[%clk 0:00:03]}  Rxg2+ {[%clk 0:00:43]} 32. Kh1 {[%clk 0:00:01]}  Rf2+ {[%clk 0:00:37]} 33. Kg1 {[%clk 0:00:01]}  Rxf6 {[%clk 0:00:38]} 34. Rxf2 {[%clk 0:00:01]}  Qxf2+ {[%clk 0:00:38]} 35. Kh1 {[%clk 0:00:02]}  Qf3+ {[%clk 0:00:34]} 0-1


[Site "https://www.chess.com"]

[Event "Titled Tuesday Blitz November 15 Early 2022"]
[White "Odegov, Artem"]
[Black "Vokhidov, Shamsiddin"]
[WhiteFideId "34183644"]
[BlackFideId "14204223"]
[WhiteElo "2298"]
[BlackElo "2619"]
[Result "0-1"]
[Round "04"]
[TimeControl "180+1"]
[Date "2022.11.16"]
[WhiteClock "0:00:09"]
[BlackClock "0:02:16"]

1. d4 {[%clk 0:03:00]}  Nf6 {[%clk 0:02:59]} 2. c4 {[%clk 0:03:00]}  e6 {[%clk 0:02:59]} 3. Nf3 {[%clk 0:03:00]}  d5 {[%clk 0:03:00]} 4. Nc3 {[%clk 0:03:00]}  Bb4 {[%clk 0:02:59]} 5. Bg5 {[%clk 0:02:59]}  h6 {[%clk 0:02:58]} 6. Bxf6 {[%clk 0:02:56]}  Qxf6 {[%clk 0:02:59]} 7. Qa4+ {[%clk 0:02:56]}  Nc6 {[%clk 0:02:59]} 8. e3 {[%clk 0:02:56]}  O-O {[%clk 0:02:58]} 9. Be2 {[%clk 0:02:55]}  dxc4 {[%clk 0:02:58]} 10. O-O {[%clk 0:02:54]}  Bd7 {[%clk 0:02:58]} 11. Qc2 {[%clk 0:02:46]}  Bxc3 {[%clk 0:02:54]} 12. bxc3 {[%clk 0:02:47]}  b5 {[%clk 0:02:50]} 13. Rfb1 {[%clk 0:02:03]}  a6 {[%clk 0:02:49]} 14. a4 {[%clk 0:01:56]}  Rab8 {[%clk 0:02:48]} 15. axb5 {[%clk 0:01:41]}  axb5 {[%clk 0:02:49]} 16. e4 {[%clk 0:01:41]}  e5 {[%clk 0:02:45]} 17. d5 {[%clk 0:01:41]}  Ne7 {[%clk 0:02:44]} 18. Ra7 {[%clk 0:01:37]}  Qd6 {[%clk 0:02:43]} 19. Qa2 {[%clk 0:01:28]}  Nc8 {[%clk 0:02:41]} 20. Ra5 {[%clk 0:01:19]}  Nb6 {[%clk 0:02:40]} 21. Qd2 {[%clk 0:00:30]}  Ra8 {[%clk 0:02:39]} 22. Rxa8 {[%clk 0:00:29]}  Rxa8 {[%clk 0:02:39]} 23. h3 {[%clk 0:00:27]}  Ra3 {[%clk 0:02:38]} 24. Qc1 {[%clk 0:00:09]}  Na4 {[%clk 0:02:37]} 25. Nxe5 {[%clk 0:00:09]}  Nxc3 {[%clk 0:02:16]} 0-1


[Site "https://www.chess.com"]

[Event "Titled Tuesday Blitz November 15 Early 2022"]
[White "Onslow, Alfie"]
[Black "Perez Rodriguez, Jennifer"]
[WhiteFideId "436976"]
[BlackFideId "3507831"]
[WhiteElo "2015"]
[BlackElo "2170"]
[Result "1-0"]
[Round "04"]
[TimeControl "180+1"]
[Date "2022.11.16"]
[WhiteClock "0:00:17"]
[BlackClock "0:00:35"]

1. e4 {[%clk 0:03:00]}  e5 {[%clk 0:02:58]} 2. Bc4 {[%clk 0:03:00]}  Nc6 {[%clk 0:02:58]} 3. Nc3 {[%clk 0:02:58]}  Nf6 {[%clk 0:02:58]} 4. d3 {[%clk 0:02:57]}  Na5 {[%clk 0:02:55]} 5. Nf3 {[%clk 0:02:51]}  Nxc4 {[%clk 0:02:54]} 6. dxc4 {[%clk 0:02:52]}  d6 {[%clk 0:02:54]} 7. h3 {[%clk 0:02:48]}  h6 {[%clk 0:02:52]} 8. Qd3 {[%clk 0:02:47]}  Be6 {[%clk 0:02:52]} 9. Be3 {[%clk 0:02:47]}  Nd7 {[%clk 0:02:53]} 10. b3 {[%clk 0:02:44]}  Be7 {[%clk 0:02:53]} 11. g4 {[%clk 0:02:40]}  c6 {[%clk 0:02:42]} 12. Rd1 {[%clk 0:02:37]}  Qa5 {[%clk 0:02:38]} 13. O-O {[%clk 0:02:34]}  Rd8 {[%clk 0:02:37]} 14. Kg2 {[%clk 0:02:33]}  O-O {[%clk 0:02:36]} 15. Qe2 {[%clk 0:02:22]}  Qxc3 {[%clk 0:02:35]} 16. Bd2 {[%clk 0:02:21]}  Qb2 {[%clk 0:02:31]} 17. Bb4 {[%clk 0:02:03]}  Qxa2 {[%clk 0:01:40]} 18. Ra1 {[%clk 0:02:01]}  Qb2 {[%clk 0:01:40]} 19. Rfb1 {[%clk 0:01:59]}  Qxa1 {[%clk 0:01:39]} 20. Rxa1 {[%clk 0:01:59]}  a6 {[%clk 0:01:39]} 21. Rd1 {[%clk 0:01:47]}  Nf6 {[%clk 0:01:34]} 22. Nxe5 {[%clk 0:01:36]}  Rfe8 {[%clk 0:01:34]} 23. Nd3 {[%clk 0:01:25]}  Bf8 {[%clk 0:01:30]} 24. f4 {[%clk 0:01:11]}  c5 {[%clk 0:01:25]} 25. Bc3 {[%clk 0:01:09]}  Be7 {[%clk 0:01:25]} 26. f5 {[%clk 0:01:04]}  Bd7 {[%clk 0:01:25]} 27. Nf4 {[%clk 0:01:04]}  Bc6 {[%clk 0:01:25]} 28. Nd5 {[%clk 0:01:03]}  Nxd5 {[%clk 0:01:25]} 29. exd5 {[%clk 0:00:57]}  Bd7 {[%clk 0:01:18]} 30. Qf2 {[%clk 0:00:46]}  Bg5 {[%clk 0:01:12]} 31. f6 {[%clk 0:00:26]}  Re4 {[%clk 0:00:55]} 32. fxg7 {[%clk 0:00:20]}  Rde8 {[%clk 0:00:56]} 33. Re1 {[%clk 0:00:20]}  Rxe1 {[%clk 0:00:51]} 34. Bxe1 {[%clk 0:00:21]}  Kxg7 {[%clk 0:00:46]} 35. Bc3+ {[%clk 0:00:21]}  f6 {[%clk 0:00:46]} 36. h4 {[%clk 0:00:18]}  Re4 {[%clk 0:00:40]} 37. hxg5 {[%clk 0:00:17]}  Rxg4+ {[%clk 0:00:40]} 38. Kf1 {[%clk 0:00:17]}  Kg6 {[%clk 0:00:35]} 39. Qxf6+ {[%clk 0:00:17]}  Kh5 {[%clk 0:00:35]} 40. Qxh6# {[%clk 0:00:17]} 1-0


[Site "https://www.chess.com"]

[Event "Titled Tuesday Blitz November 15 Early 2022"]
[White "Osiecki, Stanislaw"]
[Black "Langner, Ladislav"]
[WhiteFideId "1102990"]
[BlackFideId "300403"]
[WhiteElo "2088"]
[BlackElo "2346"]
[Result "0-1"]
[Round "04"]
[TimeControl "180+1"]
[Date "2022.11.16"]
[WhiteClock "0:00:12"]
[BlackClock "0:00:22"]

1. e4 {[%clk 0:02:59]}  c5 {[%clk 0:02:59]} 2. c3 {[%clk 0:02:57]}  Nf6 {[%clk 0:02:58]} 3. e5 {[%clk 0:02:56]}  Nd5 {[%clk 0:02:58]} 4. d4 {[%clk 0:02:54]}  cxd4 {[%clk 0:02:59]} 5. Nf3 {[%clk 0:02:53]}  d6 {[%clk 0:02:56]} 6. cxd4 {[%clk 0:02:52]}  dxe5 {[%clk 0:02:53]} 7. dxe5 {[%clk 0:02:52]}  Nc6 {[%clk 0:02:53]} 8. h3 {[%clk 0:02:51]}  Bf5 {[%clk 0:02:45]} 9. a3 {[%clk 0:02:47]}  e6 {[%clk 0:02:25]} 10. Bd3 {[%clk 0:02:46]}  Ne3 {[%clk 0:02:06]} 11. Bxe3 {[%clk 0:02:43]}  Bxd3 {[%clk 0:02:05]} 12. Nc3 {[%clk 0:02:39]}  Be7 {[%clk 0:02:00]} 13. Qd2 {[%clk 0:02:39]}  Bg6 {[%clk 0:01:44]} 14. O-O {[%clk 0:02:32]}  Qxd2 {[%clk 0:01:42]} 15. Bxd2 {[%clk 0:02:32]}  O-O-O {[%clk 0:01:40]} 16. Be3 {[%clk 0:02:24]}  Kb8 {[%clk 0:01:39]} 17. Rfd1 {[%clk 0:02:16]}  Bc2 {[%clk 0:01:37]} 18. Rdc1 {[%clk 0:02:01]}  Bb3 {[%clk 0:01:36]} 19. Nd2 {[%clk 0:01:55]}  Bd5 {[%clk 0:01:34]} 20. Nxd5 {[%clk 0:01:51]}  Rxd5 {[%clk 0:01:34]} 21. f4 {[%clk 0:01:49]}  f6 {[%clk 0:01:23]} 22. exf6 {[%clk 0:01:47]}  Bxf6 {[%clk 0:01:24]} 23. Nc4 {[%clk 0:01:44]}  Rhd8 {[%clk 0:01:19]} 24. a4 {[%clk 0:01:37]}  Nb4 {[%clk 0:01:17]} 25. Ne5 {[%clk 0:01:24]}  Nd3 {[%clk 0:01:01]} 26. Rd1 {[%clk 0:01:07]}  Nxe5 {[%clk 0:01:00]} 27. Rxd5 {[%clk 0:01:06]}  Rxd5 {[%clk 0:00:54]} 28. fxe5 {[%clk 0:01:06]}  Bxe5 {[%clk 0:00:55]} 29. Rf1 {[%clk 0:01:01]}  Bxb2 {[%clk 0:00:45]} 30. Rf7 {[%clk 0:00:59]}  Rd8 {[%clk 0:00:40]} 31. Re7 {[%clk 0:00:56]}  b6 {[%clk 0:00:32]} 32. Rxe6 {[%clk 0:00:55]}  Rd7 {[%clk 0:00:29]} 33. Bf4+ {[%clk 0:00:52]}  Kb7 {[%clk 0:00:29]} 34. Be5 {[%clk 0:00:50]}  Bxe5 {[%clk 0:00:25]} 35. Rxe5 {[%clk 0:00:50]}  Kc6 {[%clk 0:00:23]} 36. Kf2 {[%clk 0:00:46]}  a6 {[%clk 0:00:23]} 37. g4 {[%clk 0:00:40]}  b5 {[%clk 0:00:23]} 38. axb5+ {[%clk 0:00:34]}  axb5 {[%clk 0:00:23]} 39. Re6+ {[%clk 0:00:35]}  Kc5 {[%clk 0:00:22]} 40. Re5+ {[%clk 0:00:34]}  Kc4 {[%clk 0:00:22]} 41. Re4+ {[%clk 0:00:33]}  Kc3 {[%clk 0:00:22]} 42. Re3+ {[%clk 0:00:33]}  Kc2 {[%clk 0:00:22]} 43. Re8 {[%clk 0:00:26]}  b4 {[%clk 0:00:21]} 44. Rc8+ {[%clk 0:00:26]}  Kb2 {[%clk 0:00:21]} 45. Kf3 {[%clk 0:00:26]}  b3 {[%clk 0:00:21]} 46. Kf4 {[%clk 0:00:26]}  Rb7 {[%clk 0:00:20]} 47. g5 {[%clk 0:00:20]}  Ka3 {[%clk 0:00:20]} 48. Ra8+ {[%clk 0:00:19]}  Kb4 {[%clk 0:00:20]} 49. Ra1 {[%clk 0:00:17]}  b2 {[%clk 0:00:20]} 50. Rh1 {[%clk 0:00:17]}  Kc3 {[%clk 0:00:21]} 51. Kf5 {[%clk 0:00:15]}  b1=Q+ {[%clk 0:00:21]} 52. Rxb1 {[%clk 0:00:14]}  Rxb1 {[%clk 0:00:22]} 53. Ke6 {[%clk 0:00:14]}  Rh1 {[%clk 0:00:21]} 54. Kf7 {[%clk 0:00:14]}  Rxh3 {[%clk 0:00:21]} 55. Kxg7 {[%clk 0:00:14]}  Kd4 {[%clk 0:00:21]} 56. Kf6 {[%clk 0:00:14]}  Ke4 {[%clk 0:00:21]} 57. g6 {[%clk 0:00:13]}  hxg6 {[%clk 0:00:21]} 58. Kxg6 {[%clk 0:00:13]}  Kf4 {[%clk 0:00:21]} 59. Kg7 {[%clk 0:00:14]}  Rh5 {[%clk 0:00:21]} 60. Kg6 {[%clk 0:00:14]}  Kg4 {[%clk 0:00:21]} 61. Kg7 {[%clk 0:00:14]}  Kg5 {[%clk 0:00:21]} 62. Kg8 {[%clk 0:00:14]}  Rh6 {[%clk 0:00:22]} 63. Kg7 {[%clk 0:00:14]}  Rf6 {[%clk 0:00:22]} 64. Kh7 {[%clk 0:00:14]}  Kh5 {[%clk 0:00:21]} 65. Kg7 {[%clk 0:00:13]}  Kg5 {[%clk 0:00:21]} 66. Kh7 {[%clk 0:00:14]}  Rf7+ {[%clk 0:00:22]} 67. Kh8 {[%clk 0:00:12]}  Kg6 {[%clk 0:00:21]} 68. Kg8 {[%clk 0:00:12]}  Rf6 {[%clk 0:00:22]} 0-1


[Site "https://www.chess.com"]